bitfinex/quotes_ETHUSD_20250726
["timestamp","ask_amount","ask_price","bid_price","bid_amount"]
[1753492236440,2.68479398,3724.7,3724.6,0.70813169]
[1753492236756,2.68479398,3724.7,3724.6,0.25143169]
[1753492237274,2.68479398,3724.7,3724.6,0.70813169]
[1753492242680,2.68479398,3724.7,3724.6,0.25143169]
[1753492243644,2.68479398,3724.7,3724.6,0.70813169]
[1753492243864,2.68479398,3724.7,3724.6,0.25143169]
[1753492246553,2.68479398,3724.7,3724.6,0.70813169]
[1753492247076,2.68479398,3724.7,3724.6,0.70754547]
[1753492247646,2.68479398,3724.7,3724.6,0.25084547]
[1753492249583,2.68479398,3724.7,3724.6,0.70754547]
[1753492249804,2.68479398,3724.7,3724.6,1.16634547]
[1753492250086,2.68479398,3724.7,3724.6,1.2596491]
[1753492250292,0.7728,3725.5,3724.7,0.55]
[1753492250587,0.7728,3725.5,3724.6,2.16007469]
[1753492250588,2.684552,3725.1,3724.9,0.55]
[1753492250794,2.6844403,3725.2,3725.0,1.1526491]
[1753492250953,2.6844403,3725.2,3725.1,1.1526491]
[1753492251778,2.6844403,3725.2,3725.1,1.2624491]
[1753492252088,2.68440512,3725.3,3725.1,1.57769401]
[1753492252274,2.68440512,3725.3,3725.2,0.2508491]
[1753492252476,2.68434756,3725.3,3725.2,1.1526491]
[1753492253860,2.68422043,3725.5,3725.2,1.1526491]
[1753492254054,2.68422043,3725.5,3725.1,0.8154]
[1753492254055,2.68418006,3725.6,3725.3,1.1526491]
[1753492254367,1.6841,3725.5,3725.4,0.2508063]
[1753492254696,2.68420346,3725.5,3725.4,0.7124063]
[1753492255394,2.68414639,3725.6,3725.4,0.7124063]
[1753492255591,2.68414639,3725.6,3725.5,0.7124063]
[1753492256294,2.68414639,3725.6,3725.5,0.2508063]
[1753492256598,2.68414639,3725.6,3725.5,0.7124063]
[1753492257095,2.68414639,3725.6,3725.5,0.2508063]
[1753492257390,2.68414639,3725.6,3725.5,0.7124063]
[1753492257901,2.68414639,3725.6,3725.5,0.2508063]
[1753492258684,2.68396343,3725.9,3725.5,0.8008063]
[1753492258996,2.68396343,3725.9,3725.6,1.31478693]
[1753492259196,2.68386401,3726.0,3725.7,0.2508063]
[1753492259401,2.68386401,3726.0,3725.8,0.2508063]
[1753492259693,2.68386401,3726.0,3725.9,0.2508063]
[1753492260093,2.68370097,3726.2,3725.9,0.2508063]
[1753492260302,2.68370097,3726.2,3726.0,0.2508063]
[1753492260601,2.68370097,3726.2,3726.1,0.2508063]
[1753492261484,2.68370097,3726.2,3726.1,0.7124063]
[1753492262323,2.68370097,3726.2,3726.1,0.2508063]
[1753492262592,3.13600097,3726.2,3726.1,0.2508063]
[1753492263176,2.68370097,3726.2,3726.1,0.2508063]
[1753492263697,5.30189749,3726.2,3726.1,0.2508063]
[1753492263905,2.68428224,3725.4,3725.1,2.438]
[1753492264067,2.68434756,3725.3,3725.2,0.25080232]
[1753492264266,3.13664756,3725.3,3725.2,0.25080232]
[1753492264785,3.59564756,3725.3,3725.2,0.25080232]
[1753492265799,3.13664756,3725.3,3725.2,0.25080232]
[1753492266708,2.68434756,3725.3,3725.2,0.25080232]
[1753492268424,2.6841798,3725.6,3725.2,0.71240232]
[1753492268588,2.6841798,3725.6,3725.3,0.25080232]
[1753492268787,2.68420346,3725.5,3725.4,0.25080232]
[1753492269399,2.68379883,3726.1,3725.5,0.55]
[1753492269636,2.68379883,3726.1,3725.6,1.15260232]
[1753492269924,2.68379883,3726.1,3725.7,1.15260232]
[1753492270120,2.68379883,3726.1,3725.8,0.25080232]
[1753492270288,2.68379883,3726.1,3725.9,0.25080232]
[1753492270625,2.68363605,3726.3,3725.8,0.4402]
[1753492270626,2.68384326,3726.0,3725.8,0.4402]
[1753492270825,2.68384326,3726.0,3725.9,0.25085064]
[1753492272719,2.68384326,3726.0,3725.9,0.25080913]
[1753492275906,7.69222912,3726.0,3725.9,0.25080913]
[1753492277329,2.68463582,3724.9,3724.8,0.4616]
[1753492277627,2.6847079,3724.8,3724.6,0.4616]
[1753492277826,2.445,3725.1,3724.0,1.2556]
[1753492277991,2.68500209,3724.4,3724.1,0.4616]
[1753492278190,2.68485844,3724.6,3724.1,0.55]
[1753492278191,2.68506906,3724.3,3724.1,0.55]
[1753492278391,2.68506906,3724.3,3724.2,1.0116]
[1753492278593,0.7819,3724.5,3723.7,0.4616]
[1753492278823,3.2269,3724.5,3723.6,0.8154]
[1753492279127,2.68544441,3723.8,3723.6,0.55]
[1753492279349,2.68544441,3723.8,3723.7,0.4616]
[1753492280099,2.68536591,3723.9,3723.7,0.4616]
[1753492280296,0.32269,3724.4,3723.8,0.4531]
[1753492280492,0.32269,3724.4,3723.8,0.8862]
[1753492280735,0.32269,3724.4,3723.9,0.4531]
[1753492281156,0.32269,3724.4,3724.0,0.4531]
[1753492281440,2.68518937,3724.2,3724.1,0.4531]
[1753492281648,5.13118937,3724.2,3724.1,0.4531]
[1753492282554,2.68518937,3724.2,3724.1,0.4531]
[1753492283061,2.6853019,3724.0,3723.7,0.4331]
[1753492283365,2.6853019,3724.0,3723.9,0.4531]
[1753492284014,2.68544614,3723.8,3723.5,0.4331]
[1753492284238,2.68544614,3723.8,3723.6,0.4531]
[1753492284444,2.68544614,3723.8,3723.6,0.8862]
[1753492284646,2.68535677,3723.9,3723.7,0.4531]
[1753492285042,2.68535677,3723.9,3723.6,0.4331]
[1753492285258,2.68526552,3724.1,3723.8,0.4531]
[1753492285955,2.68526552,3724.1,3723.4,0.55]
[1753492286262,2.68516048,3724.2,3723.9,0.4531]
[1753492286614,5.57745152,3724.4,3724.0,0.4531]
[1753492286919,2.68514138,3724.2,3724.0,0.4531]
[1753492287363,2.68514138,3724.2,3724.1,0.4531]
[1753492288121,3.12767515,3724.4,3723.8,0.4531]
[1753492288331,0.4464,3724.1,3723.5,0.4531]
[1753492288555,2.68554666,3723.7,3723.4,0.55]
[1753492288761,2.68557989,3723.6,3723.4,0.55]
[1753492288976,2.68557989,3723.6,3723.4,1.0031]
[1753492289268,2.68535849,3723.9,3723.5,0.70392454]
[1753492289431,2.68542886,3723.8,3723.6,0.25082454]
[1753492289771,2.68542886,3723.8,3723.7,0.25082454]
[1753492293152,2.68550844,3723.7,3723.5,0.4531]
[1753492293356,2.68550844,3723.7,3723.6,0.25066442]
[1753492293632,2.68545042,3723.8,3723.6,0.70376442]
[1753492293860,2.68545042,3723.8,3723.7,0.25066442]
[1753492294258,2.68545042,3723.8,3723.7,0.70376442]
[1753492294665,2.68545042,3723.8,3723.7,0.25066442]
[1753492296180,4.46118237,3723.8,3723.7,0.25058952]
[1753492296759,3.55738237,3723.8,3723.7,0.25058952]
[1753492297069,2.68541802,3723.9,3723.7,0.25058952]
[1753492297273,2.68535674,3723.9,3723.8,0.25058952]
[1753492297577,2.68535674,3723.9,3723.8,1.13678952]
[1753492298073,2.68531076,3724.0,3723.8,1.13678952]
[1753492298298,2.68531076,3724.0,3723.9,0.25058952]
[1753492298444,2.443,3724.1,3723.9,1.13678952]
[1753492298445,5.12824654,3724.1,3723.9,1.13678952]
[1753492298781,5.12909828,3724.3,3724.0,1.13678952]
[1753492299076,5.12909828,3724.3,3724.1,1.13678952]
[1753492299278,5.12909828,3724.3,3724.2,0.70368952]
[1753492299678,5.12909828,3724.3,3724.2,0.25058952]
[1753492300041,5.57549828,3724.3,3724.2,0.25058952]
[1753492301066,7.66998218,3724.3,3724.2,0.25058952]
[1753492306202,6.00088218,3724.3,3724.2,0.25058952]
[1753492306361,6.00088218,3724.3,3724.2,0.70368952]
[1753492307293,5.12909828,3724.3,3724.2,0.70368952]
[1753492307484,5.12909828,3724.3,3724.2,1.13678952]
[1753492307864,2.68509828,3724.3,3724.2,1.13678952]
[1753492308064,5.13009828,3724.3,3724.2,1.13678952]
[1753492308968,5.13009828,3724.3,3724.2,0.70368952]
[1753492309169,5.13009828,3724.3,3724.2,0.25058952]
[1753492320688,5.13009828,3724.3,3724.2,0.73808952]
[1753492321431,5.13006833,3724.3,3724.2,1.16768952]
[1753492321723,5.13006833,3724.3,3724.2,1.92898952]
[1753492322456,2.445,3724.3,3724.2,1.92898952]
[1753492322991,5.13006833,3724.3,3724.2,1.92898952]
[1753492323304,2.68506833,3724.3,3724.2,1.92898952]
[1753492323702,2.443,3724.4,3724.3,0.55]
[1753492323904,2.443,3724.6,3724.3,1.71768952]
[1753492324108,2.443,3724.6,3724.4,1.16768952]
[1753492324437,2.443,3724.6,3724.5,1.16768952]
[1753492324610,5.12785206,3724.6,3724.5,1.16768952]
[1753492326233,2.68485206,3724.6,3724.5,1.16768952]
[1753492326837,2.68485206,3724.6,3724.5,0.73808952]
[1753492332847,2.68485206,3724.6,3724.5,0.25058952]
[1753492336908,2.68485206,3724.6,3724.5,0.73808952]
[1753492338824,2.68485206,3724.6,3724.5,0.25058952]
[1753492339748,2.68485206,3724.6,3724.5,0.73808952]
[1753492340617,2.68485206,3724.6,3724.5,0.4875]
[1753492340818,2.68499624,3724.4,3724.3,0.55]
[1753492341264,2.68499624,3724.4,3724.3,1.0002]
[1753492341863,2.68499624,3724.4,3724.3,1.4872]
[1753492342050,5.12395032,3724.5,3724.3,1.4872]
[1753492342251,5.12395032,3724.5,3724.3,1.0002]
[1753492342450,5.12395032,3724.5,3724.4,0.487]
[1753492342650,2.439,3724.5,3724.4,0.9372]
[1753492343060,2.439,3724.5,3724.4,1.6934]
[1753492343626,2.68480676,3724.7,3724.4,1.6934]
[1753492343828,5.12385721,3724.6,3724.5,0.9372]
[1753492346467,2.68499624,3724.4,3724.3,0.55]
[1753492346672,2.68499624,3724.4,3724.3,1.037]
[1753492348958,2.68499624,3724.4,3723.9,4.2]
[1753492348959,2.68522227,3724.1,3723.9,4.2]
[1753492349179,2.68528464,3724.0,3723.9,4.2]
[1753492349584,3.14778464,3724.0,3723.9,4.2]
[1753492350013,2.68528464,3724.0,3723.9,4.2]
[1753492350557,3.14778464,3724.0,3723.9,4.2]
[1753492350812,3.60668464,3724.0,3723.9,4.2]
[1753492351104,3.14778464,3724.0,3723.9,4.2]
[1753492351255,2.68528464,3724.0,3723.9,4.2]
[1753492351991,2.68528464,3724.0,3723.9,4.687]
[1753492352792,2.68528464,3724.0,3723.9,4.2]
[1753492354088,2.68550011,3723.8,3723.6,0.487]
[1753492354406,5.12537324,3723.9,3723.7,0.9372]
[1753492354554,2.68542886,3723.8,3723.7,0.4502]
[1753492354958,2.44,3723.9,3723.7,0.4502]
[1753492355180,2.44,3723.9,3723.7,0.9372]
[1753492355424,2.44,3723.9,3723.8,0.4502]
[1753492355622,2.44,3723.9,3723.8,0.9372]
[1753492355927,2.68535317,3724.0,3723.8,0.9372]
[1753492356417,2.68535317,3724.0,3723.9,0.9372]
[1753492358124,2.68535317,3724.0,3723.9,0.487]
[1753492358823,5.1252373,3724.1,3723.9,0.9372]
[1753492358977,2.44,3724.1,3723.5,0.55]
[1753492359176,2.44,3724.1,3723.7,1.341]
[1753492359610,5.12524584,3724.1,3723.8,0.9372]
[1753492359814,5.12524584,3724.1,3723.9,0.9372]
[1753492360152,2.44,3724.1,3724.0,0.9372]
[1753492361156,5.12513323,3724.3,3724.0,0.9372]
[1753492361328,2.44,3724.3,3723.7,1.341]
[1753492361524,3.0,3724.7,3724.2,1.341]
[1753492361525,2.6848353,3724.7,3724.2,1.341]
[1753492361834,5.12482146,3724.7,3724.3,0.9372]
[1753492362457,5.12482146,3724.7,3724.4,0.9372]
[1753492362652,5.12482146,3724.7,3724.4,0.4502]
[1753492362822,5.12482146,3724.7,3724.5,0.487]
[1753492363023,5.12482146,3724.7,3724.6,0.487]
[1753492364356,2.44,3724.7,3724.6,0.487]
[1753492364561,2.44,3724.7,3724.6,0.9372]
[1753492364726,2.44,3724.7,3724.6,0.4502]
[1753492365069,3.60545121,3725.8,3724.7,0.55]
[1753492365230,3.66386371,3725.7,3724.9,0.55]
[1753492365555,2.68413141,3725.6,3725.0,0.9372]
[1753492365731,2.68433208,3725.4,3725.0,0.4502]
[1753492365923,2.44,3725.3,3725.1,0.487]
[1753492366125,5.12434756,3725.3,3725.2,0.487]
[1753492367766,5.12434756,3725.3,3725.0,0.9372]
[1753492367953,5.12434756,3725.3,3725.1,0.487]
[1753492368961,5.12434756,3725.3,3725.0,0.4502]
[1753492369259,2.44,3725.3,3725.1,0.487]
[1753492369462,2.44,3725.3,3725.1,0.9372]
[1753492369870,2.44,3725.3,3725.2,0.487]
[1753492370246,0.9343,3725.8,3725.2,0.487]
[1753492370247,2.439,3725.5,3725.3,0.55]
[1753492370437,2.439,3725.5,3725.4,0.778]
[1753492370772,5.12405756,3725.8,3725.4,1.9362238]
[1753492370963,5.12405756,3725.8,3725.5,0.2511238]
[1753492371142,5.12405756,3725.8,3725.6,0.2511238]
[1753492371350,5.12405756,3725.8,3725.7,0.2511238]
[1753492372169,2.44,3725.8,3725.7,0.2511238]
[1753492372360,5.12398733,3725.8,3725.7,0.7080238]
[1753492373471,5.12398733,3725.8,3725.7,0.2511238]
[1753492374061,5.56988733,3725.8,3725.7,0.2511238]
[1753492374440,6.05828733,3725.8,3725.7,0.2511238]
[1753492375772,5.56988733,3725.8,3725.7,0.2511238]
[1753492376475,5.12398733,3725.8,3725.7,0.2511238]
[1753492377042,5.12398733,3725.8,3725.7,0.25052642]
[1753492377650,2.44,3725.8,3725.7,0.25052642]
[1753492377865,2.44,3725.8,3725.7,0.70742642]
[1753492378370,2.44,3725.8,3725.7,0.25052642]
[1753492378562,2.8859,3725.8,3725.7,0.25052642]
[1753492379366,5.12398733,3725.8,3725.7,0.25052642]
[1753492380138,5.56988733,3725.8,3725.7,0.25052642]
[1753492380338,6.05828733,3725.8,3725.7,0.25052642]
[1753492380771,5.56988733,3725.8,3725.7,0.25052642]
[1753492380964,5.12398733,3725.8,3725.7,0.25052642]
[1753492381675,5.56988733,3725.8,3725.7,0.25052642]
[1753492381853,6.05828733,3725.8,3725.7,0.25052642]
[1753492382474,7.68540122,3725.8,3725.7,0.25052642]
[1753492382775,7.73980122,3725.8,3725.7,0.25052642]
[1753492383172,7.73980122,3725.8,3725.0,0.55]
[1753492383375,2.68441962,3725.2,3725.1,0.25043406]
[1753492383982,3.13031962,3725.2,3725.1,0.25043406]
[1753492384545,2.68441962,3725.2,3725.1,0.25043406]
[1753492386581,4.03640962,3725.2,3725.1,0.25043406]
[1753492386784,2.6846997,3724.9,3724.6,0.55]
[1753492386984,2.6846997,3724.9,3724.7,0.25061529]
[1753492387152,2.6846997,3724.9,3724.8,0.25061529]
[1753492387548,3.1305997,3724.9,3724.8,0.25061529]
[1753492387766,5.5695997,3724.9,3724.8,0.25061529]
[1753492389179,5.1236997,3724.9,3724.8,0.25061529]
[1753492389387,2.439,3725.1,3724.8,1.98021529]
[1753492389549,5.12350953,3725.1,3724.9,0.25061529]
[1753492389750,5.12350953,3725.1,3725.0,0.25082318]
[1753492389983,2.439,3725.1,3725.0,1.15792318]
[1753492390789,5.12349169,3725.1,3725.0,1.15792318]
[1753492391761,5.12349169,3725.1,3725.0,0.70772318]
[1753492391968,5.12349169,3725.1,3725.0,0.25082318]
[1753492392162,5.56939169,3725.1,3725.0,0.25082318]
[1753492392375,6.85469169,3725.1,3725.0,0.25082318]
[1753492393807,6.36629169,3725.1,3725.0,0.25082318]
[1753492394285,5.92039169,3725.1,3725.0,0.25082318]
[1753492396593,5.12349169,3725.1,3725.0,0.70772318]
[1753492398224,2.439,3725.1,3725.0,0.70772318]
[1753492398570,5.12349169,3725.1,3725.0,0.70772318]
[1753492401016,5.12349169,3725.1,3725.0,0.25082318]
[1753492401403,5.58389169,3725.1,3725.0,0.25082318]
[1753492401591,6.04679169,3725.1,3725.0,0.25082318]
[1753492403177,5.58389169,3725.1,3725.0,0.25082318]
[1753492403379,5.12349169,3725.1,3725.0,0.25082318]
[1753492406306,5.58389169,3725.1,3725.0,0.25082318]
[1753492406986,5.12349169,3725.1,3725.0,0.25082318]
[1753492414786,5.58389169,3725.1,3725.0,0.25082318]
[1753492415188,6.04679169,3725.1,3725.0,0.25082318]
[1753492415516,5.12349169,3725.1,3725.0,0.25082318]
[1753492417298,5.12349169,3725.1,3725.0,0.73182318]
[1753492418926,5.12349169,3725.1,3725.0,0.73272244]
[1753492419732,5.12349169,3725.1,3725.0,1.18452244]
[1753492420311,5.12349169,3725.1,3725.0,0.73272244]
[1753492421638,5.12349169,3725.1,3725.0,0.25172244]
[1753492421841,5.12349169,3725.1,3725.0,0.73276925]
[1753492425143,5.12349169,3725.1,3725.0,0.25176925]
[1753492425842,5.58389169,3725.1,3725.0,0.25176925]
[1753492426008,6.82758141,3725.1,3725.0,0.25176925]
[1753492427509,2.68477327,3724.8,3724.6,0.481]
[1753492427839,5.12377327,3724.8,3724.7,0.25177127]
[1753492428208,5.12377327,3724.8,3724.7,0.73277127]
[1753492429138,2.68477327,3724.8,3724.7,0.73277127]
[1753492429538,2.68477327,3724.8,3724.7,0.25177127]
[1753492429741,5.12377327,3724.8,3724.7,0.25177127]
[1753492430513,5.12377327,3724.8,3724.7,0.72847127]
[1753492432138,5.12377327,3724.8,3724.7,1.15847127]
[1753492433929,2.439,3724.8,3724.7,1.15847127]
[1753492434948,2.439,3724.8,3724.7,1.92237127]
[1753492435245,2.439,3724.8,3724.2,0.4767]
[1753492435246,2.68506382,3724.4,3724.2,0.4767]
[1753492435450,5.12406382,3724.4,3724.3,0.72847506]
[1753492435842,5.12406382,3724.4,3724.3,1.15847506]
[1753492436353,5.12406382,3724.4,3724.3,0.72847506]
[1753492436647,5.12406382,3724.4,3724.3,1.15847506]
[1753492437477,5.12406382,3724.4,3724.3,0.72834746]
[1753492439169,2.439,3724.4,3724.3,0.72834746]
[1753492439454,5.12399624,3724.4,3724.3,0.72834746]
[1753492441355,2.439,3724.4,3724.3,1.15834746]
[1753492441561,2.68484228,3724.7,3724.3,1.92224746]
[1753492441762,2.68484228,3724.7,3724.4,0.25164746]
[1753492441945,2.68484228,3724.7,3724.5,0.25164746]
[1753492442153,2.68484228,3724.7,3724.6,0.25164746]
[1753492442355,2.68484228,3724.7,3724.6,0.72834746]
[1753492442556,2.68484228,3724.7,3724.6,0.25164746]
[1753492442731,5.12269458,3724.9,3724.6,1.15834746]
[1753492443061,5.12269458,3724.9,3724.7,1.15834746]
[1753492443280,5.12269458,3724.9,3724.8,0.25164746]
[1753492443463,5.12269458,3724.9,3724.8,1.15834746]
[1753492443826,2.438,3725.0,3724.8,1.96704746]
[1753492444077,2.438,3725.0,3724.9,1.15834746]
[1753492445142,2.68435752,3725.3,3724.9,1.15834746]
[1753492445481,5.12244031,3725.2,3725.0,1.15834746]
[1753492445630,5.12244031,3725.2,3725.1,0.25164746]
[1753492445966,5.12244031,3725.2,3725.1,1.15834746]
[1753492447361,5.12244031,3725.2,3725.1,0.72834746]
[1753492449577,5.12244031,3725.2,3725.1,0.72817576]
[1753492450359,5.12244031,3725.2,3725.1,0.25147576]
[1753492453473,7.69717389,3725.2,3725.1,0.25147576]
[1753492455739,2.68477998,3724.7,3724.6,0.4767]
[1753492455938,5.12277998,3724.7,3724.6,0.72819074]
[1753492460367,5.12277998,3724.7,3724.6,0.25149074]
[1753492461146,5.12277998,3724.7,3724.6,0.74839074]
[1753492462651,5.12277998,3724.7,3724.6,1.17789074]
[1753492465978,5.12277998,3724.7,3724.6,0.74839074]
[1753492466162,5.12277998,3724.7,3724.6,0.25149074]
[1753492470394,2.68485206,3724.6,3724.5,0.4969]
[1753492470597,2.68485206,3724.6,3724.5,0.74849578]
[1753492476304,2.68485206,3724.6,3724.5,1.17799578]
[1753492476871,2.68479759,3724.7,3724.5,1.17799578]
[1753492477114,2.68479759,3724.7,3724.6,0.25159578]
[1753492477312,2.68479759,3724.7,3724.6,1.17799578]
[1753492477607,2.68469069,3724.9,3724.6,1.17799578]
[1753492477902,2.68469069,3724.9,3724.3,0.82025068]
[1753492477903,5.12269069,3724.9,3724.8,0.8077]
[1753492478083,2.438,3724.9,3724.8,1.98569578]
[1753492478278,5.12259096,3725.0,3724.8,1.98569578]
[1753492478482,5.12259096,3725.0,3724.9,0.25159578]
[1753492478703,5.12259096,3725.0,3724.9,1.17799578]
[1753492481488,5.12259096,3725.0,3724.9,0.74849578]
[1753492482003,5.12259096,3725.0,3724.9,1.17799578]
[1753492483309,2.438,3725.0,3724.9,1.17799578]
[1753492483505,2.68443358,3725.2,3724.9,0.74849578]
[1753492483811,2.438,3725.1,3725.0,1.17799578]
[1753492483976,2.438,3725.1,3725.0,0.68109578]
[1753492484184,5.12249169,3725.1,3725.0,1.17799578]
[1753492484385,2.438,3725.1,3725.0,1.17799578]
[1753492484924,5.12249169,3725.1,3725.0,1.17799578]
[1753492485115,5.12249169,3725.1,3725.0,0.9264]
[1753492485355,5.12249169,3725.1,3725.0,1.17804116]
[1753492485485,2.68449169,3725.1,3725.0,0.74854116]
[1753492485784,2.68449169,3725.1,3725.0,0.74853118]
[1753492488328,2.68449169,3725.1,3725.0,0.74851014]
[1753492488815,2.438,3725.2,3725.0,1.17801014]
[1753492489018,5.12241962,3725.2,3725.1,0.25161014]
[1753492489221,5.12241962,3725.2,3725.1,0.74851014]
[1753492489512,5.12241962,3725.2,3725.1,0.25161014]
[1753492489717,2.68441962,3725.2,3725.1,0.25161014]
[1753492490280,2.68441962,3725.2,3725.1,0.72981014]
[1753492490482,5.12141962,3725.2,3725.1,0.72981014]
[1753492491418,5.12141962,3725.2,3725.1,0.25161014]
[1753492491642,0.779,3725.6,3725.1,0.72981014]
[1753492491831,2.437,3725.5,3725.2,0.72981014]
[1753492491994,5.12128164,3725.4,3725.3,1.18271014]
[1753492492384,5.12128164,3725.4,3725.3,0.72981014]
[1753492492717,2.68427551,3725.4,3725.3,1.18271014]
[1753492493222,5.12122375,3725.5,3725.3,1.18271014]
[1753492493423,5.12122375,3725.5,3725.4,0.25161014]
[1753492493586,5.12122375,3725.5,3725.4,0.72981014]
[1753492494722,2.68422375,3725.5,3725.4,0.25161014]
[1753492496129,4.41162375,3725.5,3725.4,0.25161014]
[1753492496337,5.36489327,3725.5,3725.4,0.25161014]
[1753492497530,2.68473993,3724.8,3724.6,4.2]
[1753492497730,2.68473993,3724.8,3724.7,0.25152023]
[1753492497950,2.437,3725.2,3724.7,0.25152023]
[1753492498158,2.437,3725.2,3724.8,0.25152023]
[1753492498353,2.68461678,3725.0,3724.9,0.25152023]
[1753492498559,2.68461678,3725.0,3724.9,0.72972023]
[1753492500265,2.68461678,3725.0,3724.9,0.25152023]
[1753492500636,3.59971678,3725.0,3724.9,0.25152023]
[1753492501068,3.14341678,3725.0,3724.9,0.25152023]
[1753492501933,2.437,3725.0,3724.9,0.72975098]
[1753492502370,5.12161475,3725.0,3724.9,0.72975098]
[1753492502734,5.12161475,3725.0,3724.9,0.25155098]
[1753492505775,2.68461475,3725.0,3724.9,0.25155098]
[1753492506641,3.44861475,3725.0,3724.9,0.25155098]
[1753492506840,4.36371475,3725.0,3724.9,0.25155098]
[1753492507263,2.68504227,3724.4,3724.3,0.55]
[1753492507485,2.68504227,3724.4,3724.3,2.12173827]
[1753492508067,2.68495039,3724.5,3724.3,2.59993827]
[1753492508274,2.68495039,3724.5,3724.4,0.25167001]
[1753492508569,2.68486651,3724.6,3724.4,1.18277001]
[1753492508742,2.68486651,3724.6,3724.5,1.18277001]
[1753492510793,2.68486651,3724.6,3724.5,1.1827206]
[1753492512260,2.68486651,3724.6,3724.5,0.7298206]
[1753492512475,2.68486651,3724.6,3724.5,1.1827206]
[1753492516720,2.68486651,3724.6,3724.5,1.18266184]
[1753492518387,2.68486651,3724.6,3724.5,0.72976184]
[1753492519240,2.68486651,3724.6,3724.5,0.25156184]
[1753492519384,2.68528464,3724.0,3723.9,4.2]
[1753492519587,2.68535674,3723.9,3723.8,1.0282]
[1753492519824,2.68535674,3723.9,3723.8,0.4782]
[1753492520130,2.68530466,3724.0,3723.8,1.0282]
[1753492520340,2.68530466,3724.0,3723.8,1.014]
[1753492520517,2.68530466,3724.0,3723.9,0.4593]
[1753492521039,2.68523246,3724.1,3723.9,0.4593]
[1753492521534,2.68523246,3724.1,3724.0,0.4593]
[1753492521940,2.68514043,3724.2,3724.0,0.4593]
[1753492523542,2.68521253,3724.1,3724.0,0.4593]
[1753492525527,2.68521253,3724.1,3723.8,1.014]
[1753492525741,2.68521284,3724.1,3723.9,0.4593]
[1753492526095,2.68521284,3724.1,3724.0,0.4593]
[1753492526993,2.68533706,3724.0,3723.8,1.0093]
[1753492527521,2.68539414,3723.9,3723.5,0.55]
[1753492527839,0.4691,3723.8,3723.3,0.4593]
[1753492527990,2.6855731,3723.6,3723.3,0.51233]
[1753492528338,2.6855731,3723.6,3723.3,2.8963]
[1753492528626,2.68568205,3723.5,3723.3,2.437]
[1753492528804,2.68568205,3723.5,3723.4,0.4593]
[1753492528998,2.68559747,3723.6,3723.3,2.437]
[1753492529342,2.68551779,3723.7,3723.3,2.437]
[1753492529648,2.68551779,3723.7,3723.4,0.4593]
[1753492530351,2.68551779,3723.7,3723.5,0.4593]
[1753492530753,2.68551779,3723.7,3723.3,3.51095159]
[1753492530754,2.6855731,3723.6,3723.3,3.51095159]
[1753492530950,2.6855731,3723.6,3723.4,0.4593]
[1753492531140,0.4691,3723.8,3723.4,0.4593]
[1753492531141,2.68552486,3723.7,3723.4,0.4593]
[1753492534957,2.68537961,3723.9,3723.4,0.68574871]
[1753492535264,2.68495341,3724.5,3723.4,0.68574871]
[1753492535265,0.793,3724.9,3723.6,7.26705304]
[1753492535417,2.68497172,3724.5,3723.8,0.55]
[1753492535758,2.68497172,3724.5,3724.0,0.55]
[1753492535952,2.437,3724.8,3724.1,0.9233]
[1753492536155,5.12175978,3724.8,3724.2,1.31433]
[1753492536354,5.12175978,3724.8,3724.3,0.4593]
[1753492536658,2.68479547,3724.7,3724.3,0.4593]
[1753492536859,2.68479547,3724.7,3724.2,0.85503]
[1753492537062,2.68479547,3724.7,3724.4,0.4593]
[1753492537364,3.3599,3724.8,3724.4,0.4593]
[1753492537365,2.68486149,3724.6,3724.4,0.4593]
[1753492540464,2.68480142,3724.7,3724.4,0.4593]
[1753492540830,3.15390142,3724.7,3724.4,0.4593]
[1753492542769,3.60770142,3724.7,3724.2,0.9233]
[1753492542941,0.9229,3724.7,3724.2,0.464]
[1753492543131,0.9229,3724.7,3724.3,0.4593]
[1753492543559,0.4691,3724.7,3724.2,0.464]
[1753492543736,3.15388991,3724.7,3724.3,0.4593]
[1753492546070,3.60768991,3724.7,3724.3,0.4593]
[1753492547064,3.15388991,3724.7,3724.3,0.4593]
[1753492547568,3.60768991,3724.7,3724.3,0.4593]
[1753492547773,2.68485993,3724.6,3724.3,0.4593]
[1753492549272,0.4691,3724.7,3724.3,0.4593]
[1753492549273,3.15389041,3724.7,3724.3,0.4593]
[1753492549567,3.15389041,3724.7,3724.4,0.4593]
[1753492549568,2.68479041,3724.7,3724.4,0.4593]
[1753492549972,2.68456437,3725.0,3724.5,0.808]
[1753492550350,2.68475507,3724.8,3724.6,0.9219]
[1753492550550,2.68475507,3724.8,3724.6,0.4441]
[1753492550750,2.68475507,3724.8,3724.7,0.4778]
[1753492551567,2.68475507,3724.8,3724.5,0.808]
[1753492551773,2.68496199,3724.5,3724.0,0.4778]
[1753492551993,2.68485206,3724.6,3724.1,0.9219]
[1753492552188,2.68485206,3724.6,3724.2,0.4778]
[1753492552491,2.68485206,3724.6,3724.2,0.9219]
[1753492552686,2.68485206,3724.6,3724.3,0.4441]
[1753492552992,5.12070931,3724.8,3724.4,0.4778]
[1753492553174,2.68489775,3724.6,3724.4,0.4778]
[1753492553382,0.1344,3724.5,3724.4,0.4778]
[1753492553582,2.68499988,3724.4,3724.1,0.4441]
[1753492553794,2.68499988,3724.4,3724.2,0.4778]
[1753492554094,0.1344,3724.3,3724.2,0.4778]
[1753492558173,0.1344,3724.3,3724.2,0.9219]
[1753492559514,0.1344,3724.3,3724.2,0.8385164]
[1753492559715,0.1344,3724.3,3724.2,2.0508164]
[1753492559872,2.68487062,3724.6,3724.2,2.0508164]
[1753492560072,0.1344,3724.4,3724.3,0.9219]
[1753492560480,2.81939624,3724.4,3724.3,0.4778]
[1753492560689,0.1344,3724.4,3724.3,0.4778]
[1753492562112,0.1344,3724.5,3724.3,0.9219]
[1753492562406,0.1344,3724.5,3724.4,0.43752871]
[1753492562581,0.1344,3724.5,3724.4,0.9219]
[1753492562973,0.1344,3724.5,3724.4,0.4778]
[1753492565206,0.1344,3724.5,3724.4,0.9219]
[1753492565702,0.1344,3724.5,3724.4,0.4778]
[1753492566801,0.1344,3724.5,3724.2,0.7682]
[1753492567037,0.1344,3724.5,3724.4,0.9219]
[1753492567508,0.1344,3724.5,3724.4,3.16279624]
[1753492567668,0.1344,3724.7,3724.5,3.45121071]
[1753492568008,0.4495,3725.6,3724.6,1.4719]
[1753492568009,2.6843612,3725.3,3724.6,1.4719]
[1753492568205,0.1344,3725.2,3724.8,0.55]